bitfinex/quotes_ETHUSD_20251217
["timestamp","ask_amount","ask_price","bid_price","bid_amount"]
[1765948195635,1.177e-05,2937.9,2937.2,0.17804089]
[1765948195636,0.1867,2937.9,2937.3,0.03404487]
[1765948195791,0.4964,2937.8,2937.4,0.544]
[1765948195991,0.1867,2937.9,2937.4,0.544]
[1765948196330,0.4974,2938.2,2937.5,0.544]
[1765948196627,3.40345334,2938.2,2937.5,0.544]
[1765948196794,0.46438023,2938.7,2937.5,0.544]
[1765948196795,0.46438023,2938.6,2937.6,0.1838]
[1765948196994,0.38672454,2938.5,2937.6,0.1838]
[1765948197405,0.38672454,2938.5,2937.5,0.4942]
[1765948197600,0.38672454,2938.5,2937.2,0.17804089]
[1765948197820,0.46438023,2938.3,2937.3,0.544]
[1765948198731,0.4964,2938.2,2937.3,0.544]
[1765948200127,10.20963789,2938.4,2937.3,0.544]
[1765948200128,3.40298101,2938.6,2937.8,0.50446465]
[1765948200300,3.40298101,2938.6,2937.9,0.544]
[1765948200500,0.4964,2939.8,2938.4,0.4942]
[1765948200726,0.72993525,2939.7,2938.9,0.4942]
[1765948200929,0.72993525,2939.7,2938.1,0.63078023]
[1765948200930,0.6831,2940.6,2939.3,0.4942]
[1765948201231,0.1867,2940.6,2939.9,0.50446465]
[1765948201399,0.1867,2940.6,2940.0,0.544]
[1765948201599,0.6831,2940.6,2940.1,0.31496872]
[1765948201833,0.6831,2940.6,2940.2,0.31496872]
[1765948202045,0.6831,2940.6,2940.3,0.31496872]
[1765948202329,3.40078217,2940.5,2940.4,0.31496872]
[1765948202527,0.46438023,2940.4,2939.5,0.01026465]
[1765948202695,0.4964,2940.3,2939.6,0.31425045]
[1765948202895,0.4964,2940.3,2939.7,0.31425045]
[1765948203100,0.46438023,2940.4,2939.8,0.31425045]
[1765948203300,0.46438023,2940.4,2939.9,0.31425045]
[1765948203301,0.4964,2940.2,2939.9,0.31425045]
[1765948203520,0.4964,2940.2,2940.0,0.31425045]
[1765948203722,0.6831,2939.8,2939.6,0.544]
[1765948204302,4.08476653,2939.8,2939.6,0.544]
[1765948205129,3.40166653,2939.8,2939.6,0.544]
[1765948205532,3.40166653,2939.8,2939.5,0.544]
[1765948205533,6.80333306,2939.8,2939.5,0.544]
[1765948205733,6.80333306,2939.8,2939.0,0.01026465]
[1765948205734,0.4559,2939.7,2939.0,0.01026465]
[1765948206037,0.4559,2939.6,2938.7,0.01026465]
[1765948206237,0.4559,2939.2,2938.6,0.544]
[1765948206936,0.4559,2939.2,2938.1,0.1664]
[1765948207114,0.4559,2939.2,2938.3,0.544]
[1765948207326,0.4559,2939.2,2938.4,0.01026465]
[1765948207725,1.56854448,2939.2,2938.4,0.01026465]
[1765948207926,3.40205484,2939.4,2938.9,0.49676465]
[1765948208252,3.40180071,2939.7,2939.2,0.4865]
[1765948208429,3.40180071,2939.7,2939.2,0.49676465]
[1765948208630,6.80360142,2939.7,2939.2,0.49676465]
[1765948209933,6.80360142,2939.7,2939.2,0.01026465]
[1765948210132,7.91062116,2939.7,2939.2,0.01026465]
[1765948210757,7.91062116,2939.7,2939.2,0.49676465]
[1765948211076,7.91062116,2939.7,2939.4,0.01026465]
[1765948211434,3.40180071,2939.7,2939.6,0.4892]
[1765948211632,3.40136054,2940.0,2939.9,0.4892]
[1765948211855,6.802027,2940.3,2939.9,0.4892]
[1765948212060,6.802027,2940.3,2939.7,0.4865]
[1765948212061,3.4010135,2940.3,2940.0,0.01026465]
[1765948212354,0.001,2940.4,2940.0,0.01026465]
[1765948213619,0.001,2940.4,2940.1,0.1377]
[1765948214059,0.4569,2940.4,2940.0,0.01026465]
[1765948214564,0.4569,2940.4,2939.2,0.01026465]
[1765948214565,0.4559,2939.6,2939.2,0.01026465]
[1765948214760,0.1847,2939.9,2939.4,0.01026465]
[1765948214958,0.46438023,2940.2,2939.4,0.01026465]
[1765948215160,0.46438023,2940.2,2939.1,0.6708]
[1765948215161,0.4559,2940.1,2939.3,0.544]
[1765948215762,0.4559,2940.1,2939.2,0.544]
[1765948215958,0.4559,2940.1,2938.7,0.49676465]
[1765948216158,0.4559,2939.8,2939.1,0.01026465]
[1765948216662,7.2593153,2939.7,2939.1,0.01026465]
[1765948216954,0.4559,2939.5,2939.1,0.01026465]
[1765948218459,1.06609758,2939.6,2939.1,0.19456465]
[1765948218625,3.4019391,2939.5,2939.1,0.68106465]
[1765948219035,0.6406,2939.9,2939.3,0.01026465]
[1765948219256,0.6406,2939.9,2939.5,0.01026465]
[1765948219565,6.80318388,2939.8,2939.5,0.01026465]
[1765948219748,6.80318388,2939.8,2939.3,0.543]
[1765948219959,0.4559,2939.7,2939.3,0.543]
[1765948220958,0.443,2939.4,2939.3,0.543]
[1765948222356,3.85762337,2939.6,2939.3,0.543]
[1765948222961,3.40182337,2939.6,2939.3,0.543]
[1765948223465,3.40182337,2939.6,2939.4,0.01026465]
[1765948223852,3.40182337,2939.6,2939.3,0.543]
[1765948224038,6.80364674,2939.6,2939.3,0.543]
[1765948224444,0.4559,2939.5,2938.9,0.01026465]
[1765948224636,0.4559,2939.5,2939.0,0.543]
[1765948224637,0.443,2939.1,2939.0,0.543]
[1765948224941,7.26000968,2939.4,2939.0,0.543]
[1765948225138,0.443,2939.1,2938.4,0.47464488]
[1765948225360,0.443,2939.1,2938.5,0.543]
[1765948225749,0.8988,2939.1,2938.5,0.543]
[1765948226851,6.80503572,2939.0,2938.5,0.543]
[1765948227451,0.1847,2938.9,2938.5,0.543]
[1765948227848,0.445,2938.6,2938.3,0.002]
[1765948228056,0.9009,2938.4,2938.3,0.002]
[1765948228664,0.4558,2938.4,2938.3,0.002]
[1765948228877,0.9009,2938.4,2938.3,0.002]
[1765948229172,4.76849286,2938.4,2938.3,0.002]
[1765948229383,5.58565185,2938.4,2938.3,0.002]
[1765948241871,3.85901263,2938.4,2938.3,0.002]
[1765948242277,4.30411263,2938.4,2938.3,0.002]
[1765948246274,3.85901263,2938.4,2938.3,0.002]
[1765948247098,3.40321263,2938.4,2938.3,0.002]
[1765948247794,0.4979,2938.6,2938.3,0.002]
[1765948248893,0.4035,2938.4,2938.3,0.002]
[1765948249065,0.9004,2938.4,2938.3,0.002]
[1765948249661,4.30361263,2938.4,2938.3,0.002]
[1765948249998,4.76799286,2938.4,2938.3,0.002]
[1765948254080,0.5029,2937.2,2937.1,0.002]
[1765948255478,0.6803,2937.5,2937.1,0.002]
[1765948256166,4.08462703,2937.5,2937.1,0.002]
[1765948256969,3.58630954,2937.8,2937.1,0.6171]
[1765948257208,3.40390954,2937.8,2937.4,0.01026465]
[1765948257417,3.58612215,2938.0,2937.4,0.47536465]
[1765948257581,6.8073127,2938.1,2937.6,0.01026465]
[1765948257782,7.3052127,2938.1,2937.6,0.01026465]
[1765948257982,7.3052127,2938.1,2937.4,0.47536465]
[1765948258405,7.3052127,2938.1,2937.4,0.86437892]
[1765948260679,7.3052127,2938.1,2937.4,0.39927892]
[1765948261002,0.4979,2937.8,2937.2,0.55226465]
[1765948261413,0.4077,2937.3,2937.2,0.55226465]
[1765948261779,0.497,2937.6,2937.2,0.55226465]
[1765948262006,0.497,2937.6,2937.2,4.35295233]
[1765948262213,6.8073127,2938.1,2937.4,0.47536465]
[1765948262380,6.8073127,2938.1,2937.6,0.01026465]
[1765948262580,7.3052127,2938.1,2937.6,0.01026465]
[1765948263118,0.4979,2938.0,2937.6,0.01026465]
[1765948263329,0.4979,2938.0,2937.4,0.47536465]
[1765948263491,0.4979,2938.0,2937.4,0.49309635]
[1765948263704,0.4979,2938.0,2937.4,0.01026465]
[1765948264685,3.40379182,2937.9,2937.4,0.01026465]
[1765948265219,0.4914,2937.8,2937.2,0.55226465]
[1765948265415,0.4914,2937.8,2937.2,3.95686743]
[1765948265615,0.4914,2937.8,2937.2,0.55226465]
[1765948265919,0.4914,2937.8,2937.4,0.002]
[1765948266699,6.80758364,2937.9,2937.4,0.002]
[1765948266700,0.4704,2937.5,2937.4,0.002]
[1765948266902,0.9054,2937.5,2937.4,0.002]
[1765948267113,0.435,2937.8,2937.4,0.002]
[1765948267314,3.40356012,2938.1,2937.5,0.4928]
[1765948267515,3.40356012,2938.1,2937.6,0.01026465]
[1765948267826,7.29852024,2938.1,2937.6,0.01026465]
[1765948268719,0.4914,2938.0,2937.4,0.35393823]
[1765948268890,0.4914,2938.0,2937.4,0.01226465]
[1765948269093,6.80712024,2938.1,2937.6,0.01026465]
[1765948269516,6.80712024,2938.1,2937.6,0.50306465]
[1765948269723,0.4914,2938.0,2937.4,0.01226465]
[1765948270504,0.4914,2938.0,2937.4,0.35495965]
[1765948270706,3.40379182,2937.9,2937.4,0.35495965]
[1765948270919,0.4914,2937.8,2937.4,0.35495965]
[1765948271224,3.4036925,2938.0,2937.4,0.84775965]
[1765948271420,0.4704,2937.5,2937.4,0.35495965]
[1765948271623,0.9054,2937.5,2937.4,0.002]
[1765948272837,4.30965531,2937.5,2937.4,0.002]
[1765948279933,0.4924,2938.5,2938.0,0.458]
[1765948280105,3.40321263,2938.4,2938.0,0.458]
[1765948280515,3.89461263,2938.4,2938.0,0.458]
[1765948281024,7.29784767,2938.4,2938.0,0.458]
[1765948281227,0.4914,2938.3,2937.7,0.542]
[1765948281933,0.3977,2937.8,2937.7,0.542]
[1765948282312,0.6904,2938.1,2937.7,0.542]
[1765948282522,0.199,2938.1,2937.7,0.542]
[1765948282921,0.4914,2938.0,2937.7,0.542]
[1765948283127,0.3977,2937.8,2937.7,0.542]
[1765948283836,3.80160768,2937.8,2937.4,0.002]
[1765948284131,0.4963,2937.7,2937.6,0.542]
[1765948284335,0.0049,2937.7,2937.6,0.542]
[1765948284835,3.40390768,2937.8,2937.6,0.542]
[1765948285338,3.89523071,2937.9,2937.6,0.542]
[1765948285828,7.2987646,2938.0,2937.6,0.542]
[1765948286033,0.4704,2937.7,2937.6,0.542]
[1765948287033,3.8221823,2938.0,2937.6,1.0]
[1765948287338,3.40353222,2938.2,2937.7,0.50306465]
[1765948287528,3.40353222,2938.2,2937.7,0.53710488]
[1765948287729,3.40353222,2938.2,2937.8,0.4928]
[1765948287925,0.001,2938.3,2937.8,0.4928]
[1765948288131,0.4924,2938.3,2937.8,0.4928]
[1765948288336,0.4924,2938.3,2937.7,0.45961499]
[1765948288513,0.4924,2938.3,2937.7,0.01026465]
[1765948289542,0.6895,2938.1,2937.4,3.41662202]
[1765948289746,0.6895,2938.1,2937.5,0.542]
[1765948289910,0.6895,2938.1,2937.5,3.94625505]
[1765948289911,3.40367597,2938.0,2937.5,3.94625505]
[1765948290118,3.40367597,2938.0,2937.6,0.4928]
[1765948290447,3.40367597,2938.0,2937.5,1.0348]
[1765948290743,3.40367597,2938.0,2937.5,1.0368]
[1765948291043,3.89507597,2938.0,2937.5,1.0368]
[1765948291343,3.89507597,2938.0,2937.5,0.544]
[1765948291547,0.4914,2937.9,2937.5,0.544]
[1765948292239,3.89519258,2937.9,2937.5,0.544]
[1765948292443,3.40379258,2937.9,2937.5,0.544]
[1765948292642,3.40373246,2938.0,2937.5,0.544]
[1765948292816,3.89513246,2938.0,2937.5,0.544]
[1765948293714,3.40373246,2938.0,2937.5,0.544]
[1765948294042,0.4914,2937.9,2937.5,0.544]
[1765948294414,0.3977,2937.6,2937.5,0.002]
[1765948294824,0.8565,2937.6,2937.5,0.002]
[1765948296316,4.26063943,2937.6,2937.5,0.002]
[1765948296741,3.40404341,2937.7,2937.6,0.4511]
[1765948297349,3.40404341,2937.7,2937.5,0.002]
[1765948297650,0.4181,2937.6,2937.5,0.002]
[1765948298453,3.82223943,2937.6,2937.5,0.002]
[1765948299747,4.29253943,2937.6,2937.5,0.002]
[1765948301618,3.82223943,2937.6,2937.5,0.002]
[1765948301935,4.29253943,2937.6,2937.5,0.002]
[1765948303026,3.40383001,2937.9,2937.5,0.002]
[1765948303557,0.4866,2937.6,2937.5,0.002]
[1765948303732,0.8891,2937.6,2937.5,0.002]
[1765948304256,0.4866,2937.6,2937.5,0.002]
[1765948304636,4.29323943,2937.6,2937.5,0.002]
[1765948306557,3.82213864,2937.7,2937.5,0.002]
[1765948306722,0.0042,2937.6,2937.5,0.002]
[1765948307118,0.8884,2937.6,2937.5,0.002]
[1765948308731,4.29253943,2937.6,2937.5,0.002]
[1765948308929,0.001,2938.3,2937.7,0.4511]
[1765948309134,0.4718,2938.3,2937.7,0.4511]
[1765948309336,0.4309,2937.8,2937.5,0.544]
[1765948309751,0.4704,2938.1,2937.6,0.01026465]
[1765948310257,0.4704,2938.1,2937.6,0.48816465]
[1765948310457,0.4704,2938.1,2937.6,0.01026465]
[1765948310960,0.4708,2938.0,2937.6,0.01026465]
[1765948311457,3.87440526,2938.1,2937.6,0.40630716]
[1765948311626,0.4708,2938.1,2937.6,0.88420716]
[1765948311823,3.87436185,2938.1,2937.7,0.542]
[1765948312062,3.40356185,2938.1,2937.7,0.542]
[1765948312434,3.40434585,2938.3,2937.7,0.55226465]
[1765948312655,7.27855746,2938.3,2937.8,0.91313521]
[1765948312838,7.27855746,2938.3,2937.7,0.55226465]
[1765948313360,3.87514585,2938.3,2937.7,0.55226465]
[1765948313831,7.27855746,2938.3,2937.7,0.55226465]
[1765948314662,3.40434585,2938.3,2937.9,0.01026465]
[1765948314962,3.83524585,2938.3,2937.9,0.48816465]
[1765948315160,3.83524585,2938.3,2937.9,0.4779]
[1765948315161,0.4319,2938.3,2937.9,0.4779]
[1765948315465,3.83525673,2938.3,2937.9,0.4779]
[1765948315664,3.83525673,2938.3,2937.9,0.92131262]
[1765948316051,3.83525673,2938.3,2937.9,0.4779]
[1765948316361,3.83525673,2938.3,2937.7,1.03016465]
[1765948316658,3.83525673,2938.3,2937.9,0.01026465]
[1765948317064,3.83525673,2938.3,2937.9,0.48816465]
[1765948317263,3.83525673,2938.3,2937.9,0.93260914]
[1765948317668,3.83525673,2938.3,2937.9,0.48816465]
[1765948318466,3.83525673,2938.3,2937.9,0.01026465]
[1765948318874,7.23861346,2938.3,2937.9,0.01026465]
[1765948319065,0.47,2938.0,2937.6,0.39604251]
[1765948319244,0.4866,2937.7,2937.6,0.39604251]
[1765948319448,0.4866,2937.7,2937.5,0.01226465]
[1765948319645,0.4866,2937.7,2937.6,0.542]
[1765948319844,0.4866,2937.7,2937.5,0.002]
[1765948320060,0.4866,2937.7,2937.6,0.542]
[1765948320466,0.4866,2937.7,2937.6,0.55226465]
[1765948320671,0.4153,2937.9,2937.6,0.55226465]
[1765948321266,3.40370688,2938.0,2937.6,0.55226465]
[1765948321456,0.4309,2937.7,2937.5,0.002]
[1765948321655,3.40414892,2938.5,2938.2,0.4511]
[1765948321656,0.001,2938.5,2938.2,0.4511]
[1765948322164,3.40322089,2938.4,2938.2,0.4511]
[1765948322373,0.4319,2938.3,2938.0,0.542]
[1765948323582,0.001,2938.3,2938.2,0.4511]
[1765948323983,0.001,2938.3,2938.2,0.96303444]
[1765948324760,0.001,2938.3,2938.2,0.97329909]
[1765948325086,0.001,2938.3,2938.2,1.82453039]
[1765948325685,0.001,2938.3,2938.2,5.22797467]
[1765948325868,0.001,2938.3,2938.2,1.76439595]
[1765948326488,0.001,2938.3,2938.2,5.16784023]
[1765948328180,0.001,2938.3,2938.2,5.20187467]
[1765948328374,0.001,2938.3,2938.2,5.16784023]
[1765948328886,0.001,2938.3,2938.2,5.57334423]
[1765948329590,0.001,2938.3,2938.2,18.57432389]
[1765948329888,0.001,2938.3,2938.2,19.00466968]
[1765948330090,3.40297979,2939.5,2938.2,19.00466968]
[1765948330091,0.001,2939.5,2939.4,0.4772]
[1765948331472,0.001,2939.5,2939.4,0.929]
[1765948331674,0.001,2939.5,2939.4,0.4772]
[1765948332196,0.001,2939.5,2939.4,4.33105484]
[1765948332487,0.001,2939.5,2939.4,4.83830679]
[1765948332869,0.001,2939.5,2939.4,1.43625195]
[1765948333068,0.001,2939.5,2939.4,1.97825195]
[1765948333270,0.001,2939.5,2939.4,1.43625195]
[1765948333494,0.001,2939.5,2939.4,15.46517484]
[1765948333716,0.001,2939.5,2939.4,4.33105484]
[1765948333859,0.001,2939.5,2939.4,1.0192]
[1765948334065,0.001,2939.5,2939.4,4.87305484]
[1765948338323,0.001,2939.5,2939.4,0.4772]
[1765948338534,0.001,2939.5,2939.4,1.0192]
[1765948340193,0.001,2939.5,2939.3,0.01026465]
[1765948340194,0.0043,2939.4,2939.3,0.01026465]
[1765948340394,0.0043,2939.4,2939.3,0.55226465]
[1765948340620,0.0043,2939.4,2939.3,0.542]
[1765948340912,0.001,2939.5,2939.3,0.542]
[1765948341088,0.4273,2939.4,2939.3,0.542]
[1765948341289,0.001,2939.5,2939.4,0.929]
[1765948341916,0.001,2939.5,2939.4,13.89594522]
[1765948342117,0.001,2939.5,2939.4,16.39889835]
[1765948342416,0.001,2939.5,2939.4,20.26533342]
[1765948342618,3.40044631,2940.8,2939.4,20.26533342]
[1765948342619,7.2649276,2941.9,2940.8,0.4518]
[1765948342913,7.2649276,2941.9,2941.1,0.1843]
[1765948343229,0.4666,2942.5,2941.7,0.4772]
[1765948343381,0.8911,2941.8,2941.7,0.542]
[1765948344419,4.75475958,2941.8,2941.7,0.542]
[1765948344583,0.0047,2941.6,2941.5,0.541]
[1765948344985,0.4713,2941.6,2941.5,0.541]
[1765948345484,0.4666,2941.5,2940.1,0.20536465]
[1765948345695,0.4666,2941.5,2940.2,0.541]
[1765948346096,0.4666,2941.1,2939.8,3.40149153]
[1765948346295,0.4666,2941.1,2939.2,3.40225149]
[1765948346296,0.4666,2941.1,2939.9,0.541]
[1765948346498,0.4249,2940.1,2940.0,0.541]
[1765948347026,0.4666,2940.8,2940.0,0.541]
[1765948348588,0.4666,2940.5,2940.0,0.541]
[1765948348916,0.4249,2940.1,2940.0,0.541]
[1765948349792,0.4666,2940.5,2940.0,0.541]
[1765948350187,0.4666,2940.5,2939.6,3.85358686]
[1765948350406,0.4666,2940.5,2940.0,0.541]
[1765948350618,0.4666,2940.3,2940.0,0.541]
[1765948350822,6.80179566,2940.4,2940.0,0.541]
[1765948351116,7.26839566,2940.4,2940.0,0.541]
[1765948352319,3.86749783,2940.4,2940.0,0.541]
[1765948352616,3.86749783,2940.4,2940.1,0.01026465]
[1765948353025,7.26839566,2940.4,2940.1,0.01026465]
[1765948353522,7.26839566,2940.4,2940.0,0.541]
[1765948353822,0.4666,2940.3,2940.0,0.541]
[1765948354039,0.8916,2940.1,2940.0,0.541]
[1765948354245,0.72683957,2940.3,2939.5,0.541]
[1765948354246,0.8825,2939.6,2939.5,0.541]
[1765948354523,3.4019391,2939.5,2938.9,3.88653023]
[1765948354829,0.4924,2939.4,2939.0,0.92965302]
[1765948355028,0.4924,2939.4,2939.0,0.541]
[1765948355826,6.8038782,2939.5,2938.8,0.002]
[1765948355999,6.8038782,2939.5,2939.1,0.541]
[1765948356000,7.2973782,2939.5,2939.1,0.541]
[1765948356527,0.4621,2939.4,2939.1,0.541]
[1765948356822,3.40217058,2939.3,2938.8,0.002]
[1765948357126,3.40217058,2939.3,2939.0,0.01026465]
[1765948357429,3.40182337,2939.6,2939.0,0.01026465]
[1765948357810,6.80364674,2939.6,2939.0,0.01026465]
[1765948358030,7.26574674,2939.6,2939.0,0.01026465]
[1765948358333,0.4621,2939.5,2939.0,0.01026465]
[1765948358533,0.4211,2939.2,2939.1,0.541]
[1765948359019,0.4515,2939.2,2939.1,0.541]
[1765948359215,0.4515,2939.2,2938.8,0.01226465]
[1765948359417,0.0043,2938.9,2938.8,0.002]
[1765948359619,7.26641114,2939.4,2938.8,0.543]
[1765948359832,3.40215557,2939.4,2939.0,0.4593]
[1765948360127,3.40215557,2939.4,2939.3,0.01026465]
[1765948360733,3.40215557,2939.4,2939.3,0.55126465]
[1765948361032,3.40215557,2939.4,2939.3,0.541]
[1765948361033,0.4211,2939.4,2939.3,0.541]
[1765948361406,0.8828,2939.4,2939.3,0.541]
[1765948361836,0.4211,2939.4,2939.3,0.541]
[1765948362705,0.8828,2939.4,2939.3,0.541]
[1765948362902,3.40228633,2939.2,2938.9,0.01026465]
[1765948363202,3.40228633,2939.2,2939.0,0.541]
[1765948363807,0.4515,2939.0,2938.9,0.01026465]
[1765948364007,0.4515,2939.0,2938.9,0.55126465]
[1765948364213,3.40228633,2939.2,2938.9,0.55126465]
[1765948364633,6.80457266,2939.2,2938.9,0.55126465]
[1765948364808,0.4515,2939.0,2938.9,0.55126465]
[1765948366339,3.40244526,2939.1,2938.9,0.55126465]
[1765948366507,3.40236398,2939.2,2938.9,0.55126465]
[1765948366917,0.4211,2939.0,2938.9,0.541]
[1765948369219,3.86443129,2939.2,2938.9,0.541]
[1765948369419,3.40233129,2939.2,2938.9,0.541]
[1765948369623,3.40233129,2939.2,2939.0,0.01026465]
[1765948370518,6.8042552,2939.4,2939.0,0.01026465]
[1765948370726,7.2663552,2939.4,2939.0,0.01026465]
[1765948371749,0.4621,2939.3,2939.0,0.01026465]
[1765948372040,6.8042552,2939.4,2939.0,0.01026465]
[1765948372239,3.40209186,2939.4,2939.0,0.46956465]
[1765948372448,6.8042552,2939.4,2939.0,0.46956465]
[1765948372626,3.40209186,2939.4,2939.0,0.46956465]
[1765948372955,3.40209186,2939.4,2939.0,0.91232228]
[1765948373653,3.86633502,2939.5,2939.0,0.91232228]
[1765948373948,3.86633502,2939.5,2939.2,0.01026465]
[1765948374114,0.4211,2939.4,2939.3,0.541]
[1765948374515,0.8785,2939.0,2938.9,0.002]
[1765948375717,3.85401786,2939.0,2938.9,0.002]
[1765948376223,3.40124485,2940.1,2940.0,0.4838]
[1765948376426,3.40216468,2940.2,2940.0,0.541]
[1765948376630,0.001,2940.2,2940.1,0.4838]
[1765948377449,0.001,2940.2,2940.1,1.0551]
[1765948378024,0.001,2940.2,2940.1,0.5958]
[1765948379456,0.001,2940.2,2940.1,0.4838]
[1765948380760,0.001,2940.2,2940.1,1.44991479]
[1765948380923,0.001,2940.2,2940.1,0.01026465]
[1765948381746,0.001,2940.2,2940.1,1.03506465]
[1765948383949,0.001,2940.2,2940.1,1.49436465]
[1765948384951,0.001,2940.2,2940.1,0.55126465]
[1765948384952,0.3935,2940.2,2940.1,0.55126465]
[1765948385253,0.8819,2940.2,2940.1,0.541]
[1765948385852,0.3935,2940.2,2940.1,0.541]
[1765948386723,3.79462917,2940.2,2940.1,0.541]
[1765948387129,0.001,2940.2,2940.1,0.541]
[1765948387329,0.3935,2940.2,2940.1,0.541]
[1765948387626,4.28302917,2940.2,2940.1,0.541]
[1765948387823,3.79462917,2940.2,2939.7,0.01026465]
[1765948388127,3.79462917,2940.2,2939.9,0.01026465]
[1765948388328,0.3935,2940.2,2939.9,0.01026465]
[1765948388960,0.001,2940.2,2939.9,0.01026465]
[1765948389161,0.001,2940.2,2939.9,0.48956465]
[1765948389332,0.001,2940.2,2939.9,0.01026465]
[1765948390332,0.001,2940.2,2939.9,0.48956465]
[1765948390633,0.001,2940.2,2940.0,0.541]
[1765948391162,0.001,2940.2,2940.1,0.48826465]
[1765948392864,0.3935,2940.2,2939.9,0.01026465]
[1765948393043,0.0049,2940.1,2940.0,0.541]
[1765948393540,0.4637,2940.1,2940.0,0.478]
[1765948393868,0.8816,2940.1,2940.0,0.478]
[1765948395164,0.4936,2940.0,2939.0,0.4813]
[1765948395365,0.4637,2939.5,2939.3,0.01026465]
[1765948395558,0.4179,2939.7,2939.2,0.541]
[1765948395559,0.0042,2939.4,2939.2,0.541]
[1765948395761,0.0042,2939.4,2939.3,0.01026465]
[1765948396362,3.40184988,2939.6,2939.3,0.01026465]
[1765948396559,0.3925,2939.4,2939.3,0.01026465]
[1765948396771,0.3925,2939.4,2939.3,0.55126465]
[1765948397465,3.89014603,2939.7,2939.3,0.55126465]
[1765948398282,3.40174603,2939.7,2939.3,0.55126465]
[1765948398573,0.0042,2939.3,2939.2,0.01026465]
[1765948398813,6.80349206,2939.7,2939.2,0.541]
[1765948398814,0.4894,2939.6,2939.2,0.541]
[1765948399159,0.3925,2939.4,2939.3,0.541]
[1765948399879,3.79455484,2939.4,2939.3,0.541]
[1765948400477,3.79455484,2939.4,2939.1,0.002]
[1765948400675,3.79455484,2939.4,2939.2,0.541]
[1765948400975,0.0039,2939.3,2939.1,0.002]
[1765948401175,0.3886,2939.2,2939.1,0.002]
[1765948401344,0.3886,2939.2,2939.1,0.543]
[1765948401871,3.40205484,2939.4,2939.1,0.543]
[1765948404181,3.8913391,2939.5,2939.1,0.543]
[1765948405078,7.2932782,2939.5,2939.1,0.543]
[1765948405267,3.8913391,2939.5,2939.1,0.543]
[1765948405580,6.8038782,2939.5,2939.1,0.543]
[1765948405790,0.4894,2939.4,2939.1,0.543]
[1765948406487,3.89150827,2939.4,2939.1,0.543]
[1765948408374,3.89250827,2939.4,2939.1,0.543]
[1765948409055,0.8809,2939.2,2939.1,0.002]
[1765948409257,0.8809,2939.2,2939.1,0.543]
[1765948409786,0.3925,2939.2,2939.1,0.543]
[1765948412089,3.89150827,2939.4,2939.1,0.543]
[1765948412587,0.3935,2939.2,2939.1,0.543]
[1765948413661,0.001,2939.4,2939.3,0.478]
[1765948413993,3.79555484,2939.4,2939.1,0.55326465]
[1765948414989,4.25545484,2939.4,2939.1,0.55326465]
[1765948415381,3.40305484,2939.4,2939.3,0.4868]
[1765948415582,3.40305484,2939.4,2939.3,0.49706465]
[1765948416090,0.001,2939.4,2939.3,0.49706465]
[1765948416764,0.001,2939.4,2939.3,1.03806465]
[1765948417999,0.8816,2939.2,2939.1,0.002]
[1765948418163,4.8491326,2939.2,2939.1,0.002]
[1765948421599,3.86178633,2939.2,2939.1,0.002]
[1765948422098,0.001,2939.4,2939.1,0.4671]
[1765948422401,3.4031017,2939.4,2939.1,0.4671]
[1765948422774,0.001,2939.4,2939.3,0.4651]
[1765948424566,0.001,2939.4,2939.3,0.9566]
[1765948425797,0.001,2939.4,2939.3,1.4593583]
[1765948426879,0.001,2939.4,2939.3,2.0003583]
[1765948427081,0.001,2939.4,2939.3,1.4593583]
[1765948427281,0.001,2939.4,2939.3,2.0003583]
[1765948427832,0.001,2939.4,2939.3,1.0061]
[1765948428325,0.4931,2939.4,2939.2,0.01026465]
[1765948428622,0.4931,2939.4,2939.3,0.541]
[1765948429108,0.001,2939.4,2939.3,1.0061]
[1765948429293,0.001,2939.4,2939.3,4.89977058]
[1765948429476,0.001,2939.4,2939.3,2.32904195]
[1765948430782,0.4119,2939.4,2939.3,1.37244195]
[1765948430993,0.4119,2939.4,2939.3,0.541]
[1765948431793,0.001,2939.4,2939.3,1.0061]
[1765948432102,0.001,2939.4,2939.3,1.4976]
[1765948432484,0.001,2939.4,2939.3,4.89977058]
[1765948432693,0.001,2939.4,2939.3,5.73121361]
[1765948433188,0.001,2939.4,2939.3,5.73321361]
[1765948433513,0.001,2939.4,2939.3,2.33104303]
[1765948433919,0.001,2939.4,2939.3,1.83954303]
[1765948434320,0.001,2939.4,2939.3,2.33104303]
[1765948435033,0.001,2939.4,2939.3,5.73321361]
[1765948435393,0.001,2939.4,2939.3,2.33104303]
[1765948435717,0.001,2939.4,2939.3,5.73321361]
[1765948436487,0.001,2939.4,2939.3,6.13871761]
[1765948437501,0.001,2939.4,2939.3,5.73321361]
[1765948438419,0.001,2939.4,2939.3,5.19221361]
[1765948438622,0.001,2939.4,2939.3,5.73321361]
[1765948439908,0.4931,2939.4,2939.3,0.83344303]
[1765948440223,0.4931,2939.4,2939.3,0.543]
[1765948441801,0.001,2939.4,2939.3,1.0081]
[1765948442520,0.001,2939.4,2939.3,0.4671]
[1765948442722,0.4921,2939.4,2939.3,0.002]
[1765948443019,0.4921,2939.4,2939.3,0.543]
[1765948443220,0.001,2939.4,2939.3,0.543]
[1765948443521,0.001,2939.4,2939.3,1.0081]
[1765948444796,0.4911,2939.4,2939.3,0.543]
[1765948446229,3.89315484,2939.4,2939.3,0.002]
[1765948446416,3.89315484,2939.4,2939.3,0.543]
[1765948449099,3.89315484,2939.4,2939.3,0.002]
[1765948449299,4.28495484,2939.4,2939.3,0.543]
[1765948450996,4.28495484,2939.4,2939.3,0.002]
[1765948451364,5.05364473,2939.4,2939.3,0.002]